Cogmind - Beta 13 @@@ ROGUE MODE // 2024.03.24 @ 15:34:04 Player: Oldman Pu Result: Destroyed by 3A-QTR(R) with Subdweller Machine Gun Performance ------------- Evolutions (0) 0 Regions Visited (1) 200 Robots Destroyed (15) 75 Value Destroyed (384) 384 Prototype IDs (0) 0 Alien Tech Used (0) 0 Bonus (0) 0 TOTAL SCORE: 659 Bonus ------- None Cogmind --------- Core Integrity 0/250 Matter 300/300 Energy 63/100 System Corruption 0% Temperature Danger (401) Movement Rolling (200) Ox8 Location -10/Materials Parts ------- > --- POWER (1) -------- (None) > --- PROPULSION (2) --- Wheel > --- UTILITY (2) ------ Huge Storage Unit Targeting Computer > --- WEAPON (2) ------- Light Assault Rifle Light Assault Rifle > --- INVENTORY (25) --- Ion Engine Light Ion Engine Heat Sink Weapon Shielding Medium Laser Peak State ------------ > --- POWER ------------ Ion Engine > --- PROPULSION ------- Light Treads Light Treads > --- UTILITY ---------- Huge Storage Unit Targeting Computer > --- WEAPON ----------- Medium Laser Medium Laser > --- INVENTORY -------- Ion Engine Light Ion Engine Wheel Wheel Weapon Shielding Medium Laser Medium Laser Light Assault Rifle Light Assault Rifle Light Assault Rifle [Rating: 8] Favorites ----------- Power Ion Engine Engine Ion Engine Propulsion Light Treads Treads Light Treads Wheel Wheel Utility Targeting Computer Storage Huge Storage Unit Processor Targeting Computer Protection Weapon Shielding Weapon Medium Laser Energy Gun Medium Laser Ballistic Gun Light Assault Rifle Build | -11 -10 ------- Run | Yrd Mat Slots Evolved . | . . Power . | . . Propulsion . | . . Utility . | . . Weapon . | . . Parts Attached 20 | 6 14 Power 2 | 1 1 Engine 2 | 1 1 Core . | . . Reactor . | . . Propulsion 6 | 2 4 Treads 2 | 2 . Leg . | . . Wheel 4 | . 4 Hover . | . . Flight . | . . Utility 4 | 1 3 Device . | . . Storage 2 | 1 1 Processor 1 | . 1 Hackware . | . . Protection 1 | . 1 Artifact . | . . Weapon 8 | 2 6 Energy Gun 5 | 2 3 Energy Cannon . | . . Ballistic Gun 3 | . 3 Ballistic Cannon . | . . Launcher . | . . Special Weapon . | . . Impact Weapon . | . . Slashing Weapon . | . . Piercing Weapon . | . . Special Melee Weapon . | . . Unidentified Prototypes . | . . Parts Lost 8 | . 8 Power 1 | . 1 Propulsion 3 | . 3 Utility . | . . Weapon 4 | . 4 Highest Loss Streak 4 | . 4 To Critical Strikes . | . . Average Slot Usage (%) 96 | . 96 Engine 13 | . 13 Treads 14 | . 14 Wheel 13 | . 13 Storage 14 | . 14 Processor 11 | . 11 Energy Gun 27 | . 27 Naked Turns . | . . Heaviest Build 89 | 14 89 Greatest Support 40 | 40 40 Greatest Overweight (x) 4 | 2 4 Average Overweight (x) 1 | . 2 Largest Inventory Capacity 25 | 8 25 Average Capacity 17 | 6 18 Most Carried 12 | 2 12 Average Carried 7 | 1 7 Final Capacity 25 | 8 25 Final Carried 5 | 2 5 Class Distribution -------------------- 100% | Mutant Dominant Class ---------------- Mutant | -10/Materials Resources | -11 -10 ----------- Run | Yrd Mat Matter Collected 399 | 204 195 Remotely . | . . Salvage Created 494 | . 494 Parts 31 | . 31 Haulers Intercepted 1 | . 1 Recyclers Shooed 1 | . 1 Parts Field Recycled . | . . Retrieved Matter . | . . Parts Self-Destructed . | . . Prevented . | . . Kills | -11 -10 ------- Run | Yrd Mat Combat Hostiles Destroyed 11 | . 11 Guns 11 | . 11 Classes Destroyed 5 | . 5 Hauler 1 | . 1 Watcher 3 | . 3 Swarmer 3 | . 3 Grunt 7 | . 7 Subdweller 1 | . 1 Best Kill Streak 4 | . 4 Combat Bots Only 3 | . 3 Max Kills in Single Turn 1 | . 1 Gunslinging . | . . Exploded . | . . Melee . | . . Uniques/NPCs Destroyed . | . . Combat | -11 -10 -------- Run | Yrd Mat Hostile Shots Fired 68 | . 68 Missed 17 | . 17 Damage Taken 887 | . 887 Core 274 | . 274 Absorbed by Shields . | . . Core Remaining (%) 100 | 100 . Volleys Fired 46 | . 46 Largest 2 | . 2 Hottest 100 | . 100 Shots Fired 91 | . 91 Gun 91 | . 91 Cannon . | . . Launcher . | . . Special . | . . Kinetic 5 | . 5 Thermal 86 | . 86 Explosive . | . . Electromagnetic . | . . Robot Hit Streak 16 | . 16 Robot Miss Streak 6 | . 6 Penetration Max . | . . Secondary Targets 1 | . 1 Max Gunslinging Chain 1 | . 1 Shots Hit Robots 62 | . 62 Core Hits 30 | . 30 Critical Kills . | . . Critical Parts Destroyed . | . . Critical Strikes 5 | . 5 Burn 5 | . 5 Melee Attacks . | . . Impact . | . . Slashing . | . . Piercing . | . . Sneak Attacks . | . . Combat Hostiles . | . . Follow-up Attacks . | . . Damage Inflicted 851 | . 851 Guns 851 | . 851 Cannons . | . . Explosions . | . . Melee . | . . Ramming . | . . Kinetic 17 | . 17 Thermal 834 | . 834 Explosive . | . . Electromagnetic . | . . Impact . | . . Slashing . | . . Piercing . | . . Highest Corruption . | . . Average Corruption . | . . Corruption Purged . | . . Corruption Blocked . | . . Overload Shots . | . . Overflow Damage . | . . Projectiles . | . . Explosions . | . . Melee . | . . Knockbacks . | . . Impact . | . . Kinetic . | . . Secondary . | . . Self-Inflicted Damage . | . . Shots . | . . Rammed . | . . Targets Rammed . | . . Kicked . | . . Crushed . | . . Highest Temperature 484 | . 484 Average Temperature 98 | . 98 Received Heat Transfer 567 | . 567 Effects 3 | . 3 Interference 2 | . 2 Damage (minor) 1 | . 1 Siege Activations . | . . Robots Corrupted . | . . Combat Hostiles . | . . Parts Fried . | . . Impact Corruptions . | . . Robots Melted . | . . Combat Hostiles . | . . Parts Melted 11 | . 11 Heat Transferred 2812 | . 2812 Parts Sabotaged . | . . Parts Stolen . | . . Parts Stripped . | . . Power Chain Reactions . | . . Alert | -11 -10 ------- Run | Yrd Mat Peak Influence 174 | . 174 Initial . | . . Average 88 | . 97 Maximum Alert Level . | . . Low Security (%) 100 | 100 100 Level 1 . | . . Level 2 . | . . Level 3 . | . . Level 4 . | . . Level 5 . | . . High Security . | . . Max Security . | . . Squads Dispatched 2 | . 2 Investigation . | . . Extermination . | . . Reinforcement 2 | . 2 Assault . | . . Garrison . | . . Intercept . | . . Searches Triggered . | . . Construction Impeded . | . . Haulers Reinforced . | . . Active Scanning Responses . | . . Cargo Convoy Interrupts . | . . Stealth | -11 -10 --------- Run | Yrd Mat Distress Signals . | . . Communications Jammed . | . . Distress Signals . | . . Times Spotted 22 | . 22 Peak Tracking Total 3 | . 3 Tactical Retreats . | . . Traps | -11 -10 ------- Run | Yrd Mat Traps Triggered 1 | . 1 Indirectly . | . . Trap Hack Attempts . | . . Triggered . | . . Disarmed . | . . Reprogrammed . | . . Reused . | . . Traps Extracted . | . . Installed . | . . Triggered . | . . Machines | -11 -10 ---------- Run | Yrd Mat Machines Disabled . | . . Max in Single Turn . | . . Machines Repaired . | . . Machines Dismantled . | . . Machines Sabotaged . | . . Overloaded Fab Kills . | . . Hacking | -11 -10 --------- Run | Yrd Mat Machines Accessed 2 | . 2 Terminals 2 | . 2 Fabricators . | . . Repair Stations . | . . Recycling Units . | . . Scanalyzers . | . . Garrison Access . | . . Total Hacks 3 | . 3 Successful 2 | . 2 Failed 1 | . 1 Catastrophic . | . . Database Lockouts . | . . Manual . | . . Terminals 3 | . 3 Fabricators . | . . Repair Stations . | . . Recycling Units . | . . Scanalyzers . | . . Garrison Access . | . . Terminal Hacks 2 | . 2 Locate Traps 2 | . 2 Fabricator Hacks . | . . Repair Station Hacks . | . . Recycling Unit Hacks . | . . Scanalyzer . | . . Garrison Access Hacks . | . . Unauthorized Hacks . | . . Terminals . | . . Fabricators . | . . Repair Stations . | . . Recycling Units . | . . Scanalyzers . | . . Garrison Access . | . . Data Cores Recovered . | . . Used . | . . Hacking Detections . | . . Full Trace Events . | . . Feedback Events . | . . Feedback Blocked . | . . Robot Schematics Acquired . | . . Robots Built . | . . Authchips . | . . Time . | . . Total Robot Build Rating . | . . Part Schematics Acquired . | . . Parts Built . | . . Authchips . | . . Time . | . . Total Part Build Rating . | . . Parts Repaired . | . . Time . | . . Parts Recycled . | . . Recycled Matter . | . . Retrieved Matter . | . . Retrieved Components . | . . Parts Scanalyzed . | . . Part Schematics Acquired . | . . Parts Damaged . | . . Bothacking | -11 -10 ------------ Run | Yrd Mat Used RIF Installer . | . . Robots Hacked . | . . Non-combat . | . . Combat . | . . Robot Hacks Applied . | . . Relay Couplers Released . | . . Fabnet Peak Effective % . | . . Robots Rewired . | . . Allies Hacked . | . . Hacks Repelled . | . . Allies | -11 -10 -------- Run | Yrd Mat Total Allies . | . . Largest Group . | . . Highest-Rated Group . | . . Highest-Rated Ally . | . . Total Orders . | . . Ally Attacks . | . . Total Damage . | . . Kills . | . . Allies Corrupted . | . . Allies Melted . | . . Intel | -11 -10 ------- Run | Yrd Mat Robot Analysis Total . | . . Derelict Logs Recovered . | . . Drone Launches . | . . Drone Recoveries . | . . Exploration | -11 -10 ------------- Run | Yrd Mat Turns Passed 844 | 73 771 Spaces Moved 367 | 37 330 Core 12 | 12 . Treads 196 | 25 171 Legs . | . . Wheels 159 | . 159 Hover . | . . Flight . | . . Fastest Speed 50 | 50 140 Average Speed 162 | 140 165 Slowest Speed 320 | 160 320 Overloaded Moves . | . . Propulsion Burnouts . | . . Robots Hopped . | . . Cave-ins Triggered . | . . Exploration Rate (%) 31 | 4 58 Regions Visited 1 Branch Regions . Pre-discovered Areas . | . . Known Exits Taken . | . . Unknown Exits Taken 1 | 1 . Scrap Searched . | . . Spaces Dug . | . . Terrain Destroyed . | . . Melee . | . . Projectile . | . . AOE . | . . Terrain Rammed . | . . Walls Destroyed . | . . Machines Disabled . | . . Actions | -11 -10 --------- Run | Yrd Mat Total 522 | 55 467 Wait 72 | 11 61 Move 366 | 36 330 Hop . | . . Pick Up 14 | 2 12 Fast Attach 7 | 6 1 Attach 9 | . 9 Detach . | . . Swap 4 | . 4 Drop 4 | . 4 Fire 46 | . 46 Melee . | . . Ram . | . . Kick . | . . Crush . | . . Escape Stasis . | . . Rewire . | . . Trap . | . . Miscellaneous . | . . Route ------- -11/Scrapyard -10/Materials (discovered 1 exit: [*Mat]) History --------- Turn | Location | Event 18 | -11/Scrapyard | Discovered new exit (range 15) 74 | -11/Scrapyard | Entered Materials 309 | -10/Materials | Build established: Mutant 309 | -10/Materials | Discovered new exit (range 16) 700 | -10/Materials | Derelicts attacked the area 816 | -10/Materials | Lost 4 parts (2n2w) 824 | -10/Materials | Core integrity fell below 50% 841 | -10/Materials | Core integrity fell below 20% 845 | -10/Materials | Destroyed by 3A-QTR(R) with Subdweller Machine Gun Last Messages --------------- 00787_ Acquired 10 matter. 00804_ K-01 Serf destroyed. 00826_ Sub. Optics melted. 00826_ 7F-RFI(R) destroyed. 00827_ Ion Engine destroyed. 00827_ Med. Laser destroyed. 00832_ Acquired 10 matter. 00833_ Acquired 1 matter. 00835_ Critical hit (Meltdown: +300). 00836_ Acquired 1 matter. 00838_ Overheating: Wheel damaged (-12). 00838_ 3A-QTR(R) affixes Scrap Shield Fragment to Scrap Shield. 00839_ Lgt. Assault Rifle destroyed. 00842_ Overheating: System interference. 00842_ Med. Laser temporarily disabled. 00842_ Targeting Computer temporarily disabled. 00842_ Wheel destroyed. 00843_ Acquired 5 matter. 00844_ Acquired 10 matter. 00845_ Acquired 2 matter. Map ----- +----------------------------------------------------+ | ?????????????????????????????????????? | | ?????????????????????????????????????? | | ?????????????????????????????????????? | | ?????????????????????????????????????? | | ?????????????????????????????????????? | | ?????????????????????????????????????? | | ?????????????????????????????????????? | | ?????????????????????????????????????? | | ?????????????????????????????????????? | | ?????????????????????????????????????? | | ?????????????????????????????????????? | | ?????? ????????????????????????????? | | ?????# ????????????????????????????? | | ??#### #???????????????????????????? | | ??? #???????????????????????????? | | ??? #???????????????????????????? | | ???? #???????????????????????????? | | ???? #???#########???????????????? | | ##### #???# #?????????####### | | # #???# """#?????????# ! # | | ?? #???# """#?????????# # | | ??? #???# """#?????????# # | | ???? #???# #???####### # | | ?????# #?######+####?### = # """ # | | ?????# #?# !/%[! ;###R[%%! # """ # | | ?????# ### *[! R%@ [ + """ # | | ####?# % ;####;= # # | | ###% ###+#######* # """ # | | ## # ####+### """ # | | ## # """ #? # """ # | | """## / """ ## "" # # | | """## # """ ## "T ####### | | """## # ## "" #?????? | | ####+######## """ ## #?????? | | +### #??# ! Y" ## /#?????? | | ## """ #??# """ ##] #?????? | | + """ #??# ########?????? | | ## """ #??##########????????????? | | ## """ #????????????????????????? | | ## #????????????????????????? | | ## %! #????????????????????????? | | ## = #????????????????????????? | | ## ! #????????????????????????? | | ###########????????????????????????? | | #??????????????????????????????????? | | #??????????????????????????????????? | | #????##????????????????????????????? | | #????# ##??????????????????????????? | | ####### ##################?????????? | | ^ #?????????? | +----------------------------------------------------+ Best States ------------- Heat Dissipation 25 Energy Generation 10 Energy Capacity 250 Matter Stores 300 Matter Capacity 300 Sight Range 16 Terrain Scan Density 10 Weapon Shielding 33 Evasion (%) 40 Targeting Accuracy 5 Recoil Reduction 2 Item Schematics ----------------- None Robot Schematics ------------------ None Fabricated ------------ Nothing Alien Tech Used ----------------- None Achievements -------------- None Challenges ------------ None Game ------ Seed ThermalSurgeLauncher Manual? 0 Play Time 00:10:01 Cumulative 202.8 hours Start 2024.03.24 @ 15:25:13 End 2024.03.24 @ 15:34:04 Sessions 1 Manual Loads 0 Difficulty Rogue Special Mode None Game No. 155 Rogue 143 Adventurer 12 Explorer 0 Win Type - Total 1 Types 1/0/0/0/0/0/0/0/0 Lore% 27 Gallery% 44 Achievement% 32 Wizard Run 0 Options --------- Layout 1 ASCII 0 Keyboard 0 Movement Mouse Keybinds 0 Fullscreen 1 Font 32/SmallcapsGlow Map View 77x35 Zoom Use 0% Tactical HUD 1 Map Filters NONE Filters NONE Steam 1 RUN: faf62c03-0f94-4471-9759-696e087cc3c2